bitfinex-derivatives/quotes_ETHF0:USTF0_20250828
["timestamp","ask_amount","ask_price","bid_price","bid_amount"]
[1756394694530,0.4307,4530.0,4529.4,31.81]
[1756394694929,3.6385,4529.6,4529.5,21.39]
[1756394695139,0.4307,4529.5,4529.4,31.81]
[1756394695335,0.4307,4529.5,4529.4,53.2]
[1756394695541,0.39732,4530.0,4529.5,0.43996]
[1756394695748,0.39735,4529.7,4529.5,0.0426]
[1756394695945,0.39733,4529.9,4529.6,21.39]
[1756394696133,3.2078,4530.1,4529.6,21.39]
[1756394696334,0.39733,4529.8,4529.7,21.382]
[1756394696547,0.39732,4530.0,4529.7,21.382]
[1756394696740,0.39733,4529.9,4529.7,21.382]
[1756394696934,0.39733,4529.9,4529.4,31.81]
[1756394696935,0.4307,4529.8,4529.4,31.81]
[1756394697140,3.2078,4530.1,4529.4,31.81]
[1756394697141,0.4307,4530.0,4529.5,21.371]
[1756394697342,4.03581,4530.1,4529.5,21.371]
[1756394698042,4.03581,4530.1,4529.4,31.81]
[1756394698043,0.4307,4530.0,4529.4,31.81]
[1756394698237,0.4307,4530.0,4529.7,0.0426]
[1756394698638,0.4307,4529.9,4529.7,0.0426]
[1756394699248,0.39732,4530.0,4529.7,0.0426]
[1756394699446,0.4307,4529.9,4529.7,0.0426]
[1756394699750,0.4307,4529.9,4529.8,21.356]
[1756394700244,3.2078,4530.6,4530.4,0.39728]
[1756394700550,10.14653854,4533.2,4530.4,0.39728]
[1756394700551,3.2078,4531.2,4531.1,0.0426]
[1756394700746,3.2078,4531.2,4531.1,21.3856]
[1756394701337,3.2078,4531.2,4531.1,53.1886]
[1756394701537,3.2078,4532.2,4531.2,0.99303]
[1756394701748,3.2078,4532.2,4532.0,0.39714]
[1756394702046,3.6385,4532.2,4532.1,21.336]
[1756394702642,3.2078,4532.2,4532.1,0.0426]
[1756394702839,0.39716,4531.8,4531.1,32.20022]
[1756394703143,0.4307,4531.2,4531.1,31.803]
[1756394703447,3.2078,4531.4,4531.1,53.1716]
[1756394703643,3.2078,4531.4,4531.1,31.8456]
[1756394703644,3.605,4531.4,4531.1,31.8456]
[1756394703842,0.4307,4531.2,4531.1,31.803]
[1756394704143,0.4307,4531.2,4530.4,21.339]
[1756394704144,0.4307,4530.7,4530.4,21.339]
[1756394704351,4.03577,4530.5,4530.4,21.339]
[1756394704843,4.03578,4530.5,4530.4,21.357]
[1756394705043,0.39729,4530.3,4529.4,31.799]
[1756394705245,3.2078,4529.8,4529.6,0.4292]
[1756394705439,3.2078,4530.4,4529.7,21.7762]
[1756394706343,3.2078,4530.4,4529.7,0.4292]
[1756394706543,0.39732,4530.0,4529.7,0.4292]
[1756394706745,3.2078,4530.4,4529.8,21.333]
[1756394706746,0.39729,4530.3,4529.8,21.333]
[1756394706948,3.2078,4530.4,4529.9,0.4562]
[1756394707148,3.2078,4530.4,4529.8,21.333]
[1756394707149,3.60508,4530.4,4529.8,21.7892]
[1756394707349,3.2078,4530.4,4529.9,21.33]
[1756394707547,0.39731,4530.1,4529.9,21.33]
[1756394707743,0.4219,4530.0,4529.9,21.33]
[1756394708052,3.60509,4530.4,4529.4,72.599]
[1756394708250,3.2078,4530.4,4529.6,0.4562]
[1756394708451,0.3973,4530.2,4529.7,21.318]
[1756394708749,3.60509,4530.4,4529.8,0.4562]
[1756394708947,0.4219,4530.2,4529.8,21.7832]
[1756394709148,3.2078,4530.4,4529.8,21.7832]
[1756394709545,3.2078,4530.4,4529.8,21.327]
[1756394709853,3.2078,4532.9,4531.8,0.39716]
[1756394710157,3.2078,4533.6,4532.4,0.4562]
[1756394710341,3.2078,4533.6,4532.5,1.087]
[1756394710543,0.39701,4533.5,4532.6,0.4562]
[1756394710743,0.39707,4532.9,4532.7,13.47]
[1756394711047,0.39713,4532.1,4532.0,21.382]
[1756394711251,0.39715,4531.9,4531.6,31.799]
[1756394711454,0.39715,4531.9,4531.7,21.375]
[1756394711655,0.39717,4531.8,4531.6,31.799]
[1756394711863,0.39717,4531.8,4531.7,21.381]
[1756394712452,0.81907,4531.8,4531.6,31.799]
[1756394712650,0.81907,4531.8,4531.7,21.381]
[1756394713057,0.4219,4531.7,4531.6,31.799]
[1756394713251,0.39715,4532.0,4531.7,0.4562]
[1756394713450,0.39715,4531.9,4531.8,21.365]
[1756394713659,0.39717,4531.7,4531.6,31.799]
[1756394713951,0.4219,4531.6,4531.5,21.365]
[1756394714158,4.02688,4531.6,4531.5,21.365]
[1756394714450,3.2078,4531.6,4531.5,21.8212]
[1756394714857,3.2078,4533.2,4531.5,28.5728]
[1756394715051,3.2078,4533.2,4532.3,0.4562]
[1756394715251,0.39709,4532.6,4532.5,0.4562]
[1756394715454,0.39709,4532.6,4532.5,21.8292]
[1756394715759,0.39709,4532.6,4532.5,21.8492]
[1756394715957,0.39709,4532.6,4532.5,21.8482]
[1756394716153,0.39707,4532.9,4532.5,21.8482]
[1756394716350,0.39704,4533.2,4532.7,3.2078]
[1756394716744,0.39702,4533.4,4532.8,0.4562]
[1756394716948,3.2078,4533.7,4532.9,21.383]
[1756394717147,3.2078,4533.7,4532.7,3.2078]
[1756394717359,0.39704,4533.2,4533.0,21.383]
[1756394717653,0.99251,4533.6,4533.1,21.375]
[1756394717860,0.4219,4533.4,4532.0,3.2078]
[1756394718053,0.39713,4532.2,4532.1,0.4562]
[1756394718754,0.39715,4531.9,4531.8,32.2502]
[1756394718952,0.39715,4531.9,4531.3,3.2078]
[1756394718953,0.39719,4531.4,4531.3,3.2078]
[1756394719160,0.39719,4531.4,4531.3,18.17]
[1756394719654,0.39719,4531.4,4531.3,14.9622]
[1756394720049,0.39719,4531.4,4531.3,21.8252]
[1756394720447,0.39719,4531.4,4531.3,0.4562]
[1756394720647,4.20067,4532.0,4530.8,3.2078]
[1756394720854,0.39724,4530.9,4530.8,3.664]
[1756394721048,0.39724,4530.9,4530.8,25.033]
[1756394721252,0.39722,4531.1,4530.8,24.5768]
[1756394721454,0.4219,4531.7,4530.9,0.4562]
[1756394721656,0.39722,4531.2,4530.8,3.2078]
[1756394721963,0.39722,4531.2,4531.0,0.4562]
[1756394722155,0.39722,4531.2,4531.1,21.358]
[1756394722355,0.39722,4531.2,4531.1,21.8142]
[1756394722558,0.39722,4531.2,4531.1,0.4562]
[1756394722761,0.39722,4531.2,4531.1,21.8082]
[1756394723151,0.39722,4531.2,4531.1,21.8062]
[1756394723764,4.0,4531.2,4530.5,0.4562]
[1756394724065,0.4219,4530.3,4530.2,31.79]
[1756394724464,0.39739,4529.2,4529.1,0.4562]
[1756394724956,0.39738,4529.3,4529.2,0.4562]
[1756394725153,4.20102,4530.4,4529.2,0.4562]
[1756394725351,4.20102,4530.4,4529.5,3.2078]
[1756394725564,3.2078,4530.4,4529.7,0.4562]
[1756394726565,3.2078,4530.4,4529.8,21.342]
[1756394726862,0.4219,4529.8,4529.1,0.4562]
[1756394727058,0.4219,4529.8,4529.2,21.343]
[1756394728464,0.4219,4529.3,4528.5,34.9968]
[1756394728766,0.4219,4529.3,4528.5,31.789]
[1756394729366,0.4219,4529.3,4528.6,21.329]
[1756394729664,0.4219,4529.3,4528.5,31.789]
[1756394729962,3.2078,4529.4,4528.5,31.789]
[1756394729963,3.2078,4529.4,4528.6,21.323]
[1756394730162,0.4219,4528.8,4528.7,21.319]
[1756394730356,0.4219,4528.6,4528.5,31.789]
[1756394730760,0.4219,4528.6,4528.5,53.102]
[1756394731069,0.4219,4528.6,4528.5,31.789]
[1756394731268,0.4219,4528.6,4528.5,53.099]
[1756394731470,0.4219,4528.6,4528.5,31.789]
[1756394731670,0.4219,4528.6,4528.5,53.094]
[1756394731962,3.2078,4528.9,4528.5,53.094]
[1756394732168,0.39743,4528.8,4528.7,0.4562]
[1756394732368,0.39743,4528.8,4528.7,21.7632]
[1756394732568,0.39743,4528.8,4526.7,2.15044133]
[1756394732569,0.22083,4528.7,4526.7,2.15044133]
[1756394732764,0.22083,4528.7,4526.7,1.97473869]
[1756394732765,0.8195,4526.8,4526.7,1.97473869]
[1756394732962,0.99421,4525.9,4524.5,3.2078]
[1756394733163,0.39783,4524.3,4524.1,0.10167656]
[1756394733463,0.39782,4524.3,4524.1,0.10167656]
[1756394733762,3.6297,4525.1,4524.2,21.608]
[1756394733963,0.39777,4524.9,4524.2,21.608]
[1756394734173,0.3978,4524.6,4524.2,21.608]
[1756394734558,3.2078,4525.1,4524.2,21.608]
[1756394734559,3.60556,4525.1,4524.3,0.4562]
[1756394734766,0.39778,4524.8,4524.3,0.4562]
[1756394734964,3.2078,4525.1,4524.4,21.597]
[1756394735259,3.2078,4525.1,4524.1,0.10167656]
[1756394735464,0.39777,4524.9,4524.3,0.4562]
[1756394735671,0.39773,4525.4,4524.6,0.4562]
[1756394735868,3.2078,4525.6,4525.1,0.578]
[1756394736062,0.39766,4526.1,4525.3,0.578]
[1756394736268,3.2078,4526.2,4525.4,17.568]
[1756394736467,0.3977,4525.7,4525.5,0.578]
[1756394736669,0.39772,4525.4,4525.1,0.578]
[1756394736973,0.39773,4525.3,4525.2,13.492]
[1756394737166,0.39773,4525.3,4524.5,3.2078]
[1756394737361,0.3977,4525.7,4524.7,0.578]
[1756394737565,4.20194,4526.2,4524.7,0.578]
[1756394737768,3.2078,4526.2,4524.9,0.578]
[1756394737978,0.39776,4525.1,4525.0,21.586]
[1756394738282,0.39769,4525.8,4525.2,3.2078]
[1756394738476,0.39769,4525.8,4525.3,0.578]
[1756394738774,0.39772,4525.5,4525.3,0.578]
[1756394738975,0.39767,4526.1,4525.3,0.578]
[1756394739166,0.39768,4526.0,4525.8,0.578]
[1756394739376,0.99392,4527.2,4526.0,0.578]
[1756394739573,3.2078,4527.3,4526.4,0.578]
[1756394739574,0.39763,4526.5,4526.4,0.578]
[1756394739767,0.39761,4526.7,4526.3,3.2078]
[1756394739969,0.39762,4526.6,4526.4,0.578]
[1756394740179,0.39762,4526.6,4526.5,21.571]
[1756394740369,0.39762,4526.6,4525.9,31.815]
[1756394740370,0.39767,4526.0,4525.9,31.815]
[1756394740572,0.39767,4526.0,4525.9,53.384]
[1756394740868,0.39767,4526.0,4525.9,53.38]
[1756394741073,0.39767,4526.0,4525.9,94.758]
[1756394741477,0.39767,4526.0,4525.9,53.958]
[1756394741879,0.39767,4526.0,4525.9,53.377]
[1756394742067,0.39767,4526.0,4525.9,32.393]
[1756394742478,4.13277,4526.0,4525.9,31.815]
[1756394743178,4.13277,4526.0,4525.9,53.361]
[1756394743481,4.13277,4526.0,4525.9,31.815]
[1756394743670,4.13277,4526.0,4525.9,53.362]
[1756394743870,4.13277,4526.0,4525.0,0.578]
[1756394743871,0.99422,4525.9,4525.0,0.578]
[1756394744076,0.39774,4525.2,4525.1,22.109]
[1756394744475,3.2078,4526.0,4525.2,0.578]
[1756394744675,0.39773,4525.4,4525.2,0.578]
[1756394744984,0.99422,4525.9,4525.2,0.578]
[1756394745185,0.39773,4525.3,4525.2,0.578]
[1756394745479,0.39778,4524.8,4524.7,0.578]
[1756394745878,0.39778,4524.8,4524.7,22.09]
[1756394746080,0.39775,4525.1,4524.8,0.578]
[1756394746276,3.2078,4525.5,4524.8,0.578]
[1756394747077,0.39778,4524.8,4524.7,0.578]
[1756394747578,0.39778,4524.8,4524.7,22.081]
[1756394747980,0.39778,4524.8,4524.7,22.077]
[1756394748369,0.39778,4524.8,4524.7,22.074]
[1756394748780,0.39778,4524.8,4524.7,22.06]
[1756394748979,0.9251,4524.5,4524.4,31.819]
[1756394749184,4.1329,4524.5,4524.4,53.301]
[1756394749387,4.1329,4524.5,4524.4,53.306]
[1756394749682,0.39797,4522.6,4522.5,31.825]
[1756394749878,0.39797,4522.6,4522.5,53.902]
[1756394750574,3.2078,4523.2,4522.5,53.902]
[1756394750774,3.2078,4523.2,4522.5,53.324]
[1756394750970,3.2078,4523.2,4522.6,22.104]
[1756394751175,3.2078,4523.2,4522.7,21.525]
[1756394751370,3.2078,4523.2,4522.8,0.578]
[1756394751572,3.2078,4523.2,4522.6,0.578]
[1756394751777,3.7351,4523.8,4523.0,0.578]
[1756394751977,3.2078,4523.8,4523.0,0.578]
[1756394752183,3.2078,4523.8,4523.1,21.516]
[1756394752480,0.5273,4524.5,4523.4,0.578]
[1756394752481,3.2078,4524.3,4523.4,0.578]
[1756394752782,3.2078,4524.8,4523.9,3.2078]
[1756394752988,3.2078,4524.8,4523.6,0.578]
[1756394752989,0.5273,4524.7,4524.0,9.195]
[1756394753190,0.5273,4524.7,4522.1,3.2078]
[1756394753191,3.2078,4524.1,4522.1,3.2078]
[1756394753481,3.2078,4524.1,4521.8,0.5838223]
[1756394753482,3.2078,4522.4,4521.8,0.5838223]
[1756394753879,3.2078,4522.6,4521.9,21.616]
[1756394754082,3.2078,4522.6,4521.8,0.5838223]
[1756394754279,3.2078,4522.6,4521.9,21.613]
[1756394754485,3.2078,4522.6,4521.8,0.5838223]
[1756394754687,3.2078,4522.6,4521.9,21.611]
[1756394755082,3.2078,4522.6,4521.8,0.5838223]
[1756394755797,3.2078,4523.1,4522.1,3.2078]
[1756394755989,3.2078,4523.1,4522.2,0.578]
[1756394756292,3.2078,4523.1,4522.3,11.393]
[1756394756584,3.2078,4522.6,4522.4,0.578]
[1756394756780,3.2078,4523.1,4522.5,21.622]
[1756394756981,0.5273,4523.2,4522.5,21.622]
[1756394757176,3.2078,4524.1,4522.7,0.578]
[1756394757381,3.2078,4523.4,4522.8,21.632]
[1756394757581,3.2078,4523.4,4522.8,40.8]
[1756394757781,3.7351,4523.4,4522.9,22.216]
[1756394758088,3.7351,4523.4,4522.9,21.638]
[1756394758289,0.39793,4523.1,4523.0,0.578]
[1756394758685,0.39793,4523.1,4523.0,22.21]
[1756394758882,0.39793,4523.1,4523.0,0.578]
[1756394759288,0.39793,4523.1,4523.0,22.206]
[1756394759790,0.39793,4523.1,4523.0,21.628]
[1756394759988,0.99478,4523.3,4522.8,40.8]
[1756394760181,0.99491,4522.7,4521.8,0.0058223]
[1756394760381,0.39802,4522.0,4521.9,21.617]
[1756394760895,0.39802,4522.0,4521.9,22.192]
[1756394761394,3.2078,4522.8,4522.0,0.578]
[1756394761586,3.20476356,4522.8,4522.2,0.578]
[1756394761789,0.39799,4522.5,4522.1,21.611]
[1756394762101,0.398,4522.3,4522.2,22.187]
[1756394762594,0.39797,4522.6,4522.2,22.187]
[1756394762792,3.2078,4523.3,4522.2,21.609]
[1756394762985,3.2078,4523.9,4522.6,0.578]
[1756394763182,3.2078,4523.9,4523.1,0.39792]
[1756394763391,3.2078,4523.9,4523.3,0.578]
[1756394763590,3.2078,4524.4,4523.5,3.2078]
[1756394763784,0.39783,4524.2,4523.7,0.578]
[1756394763985,3.2078,4524.9,4524.1,0.578]
[1756394764293,0.3978,4524.6,4524.3,0.578]
[1756394764489,3.2078,4524.9,4524.0,3.2078]
[1756394764687,0.39779,4524.6,4524.1,22.177]
[1756394764883,3.2078,4524.9,4524.1,22.177]
[1756394765089,0.39781,4524.5,4524.0,3.2078]
[1756394765393,0.39781,4524.4,4524.1,21.602]
[1756394765692,0.39778,4524.8,4524.3,0.578]
[1756394765893,4.20223,4524.9,4524.0,3.7858]
[1756394766192,0.39782,4524.3,4524.1,40.8]
[1756394766392,0.39782,4524.3,4524.2,14.2148]
[1756394766593,3.60562,4524.3,4524.2,22.0998]
[1756394766791,4.15202,4524.3,4524.2,21.584]
[1756394766997,4.15202,4524.3,4524.1,40.8]
[1756394767397,0.39786,4523.9,4523.3,3.2078]
[1756394767601,0.39787,4523.8,4523.5,0.5158]
[1756394767805,3.2078,4524.8,4523.7,0.5158]
[1756394767991,0.99443,4524.9,4523.8,21.573]
[1756394768302,3.2078,4524.9,4524.0,0.5158]
[1756394768498,0.39779,4524.7,4524.6,0.5158]
[1756394768797,0.39779,4524.7,4524.6,22.0818]
[1756394768998,0.39779,4524.7,4524.6,21.565]
[1756394769388,0.94419,4524.7,4524.6,21.565]
[1756394769585,0.5464,4524.1,4523.3,0.5158]
[1756394769892,0.9945,4524.6,4523.2,31.844]
[1756394769893,0.5464,4523.3,4523.2,31.844]
[1756394770092,3.7542,4523.3,4523.2,31.844]
[1756394770299,3.7542,4523.3,4523.2,53.417]
[1756394770593,3.7542,4523.3,4523.2,31.844]
[1756394770807,3.7542,4523.3,4523.2,53.417]
[1756394771002,3.7542,4523.3,4523.2,31.844]
[1756394771192,3.7542,4523.3,4523.2,52.76861]
[1756394771698,3.7542,4523.3,4523.2,31.20361]
[1756394771898,3.7542,4523.3,4523.2,52.76361]
[1756394772099,3.7542,4523.3,4523.2,31.20361]
[1756394772595,7.7542,4523.3,4523.2,31.20361]
[1756394772805,7.7542,4523.3,4523.2,52.75661]
[1756394773099,3.7542,4523.3,4523.2,52.75661]
[1756394773796,7.71016587,4523.3,4521.8,0.5216223]
[1756394774003,3.2078,4522.1,4522.0,0.5158]
[1756394774204,3.7542,4522.1,4522.0,21.541]
[1756394774399,0.5464,4522.0,4521.8,0.0058223]
[1756394774601,3.2078,4522.1,4522.0,0.5158]
[1756394774995,3.2078,4522.1,4522.0,22.0568]
[1756394776410,3.2078,4522.1,4522.0,0.5158]
[1756394776594,3.2078,4522.1,4522.0,22.0478]
[1756394777008,3.7542,4522.1,4522.0,21.532]
[1756394777194,3.7542,4522.1,4521.8,0.0058223]
[1756394777195,0.5464,4522.0,4521.8,0.0058223]
[1756394777394,0.5464,4521.9,4521.8,0.0058223]
[1756394778107,4.5464,4521.9,4521.8,0.0058223]
[1756394778404,0.5464,4521.9,4521.8,0.0058223]
[1756394778707,0.39802,4522.0,4521.9,0.5158]
[1756394779008,0.5464,4521.9,4521.8,0.0058223]
[1756394779197,0.5464,4521.9,4521.8,13.8645723]
[1756394779397,3.2078,4522.1,4521.8,21.535]
[1756394779598,0.39802,4522.0,4521.9,0.5158]
[1756394780402,0.39802,4522.0,4521.8,22.0508]
[1756394780603,3.2078,4522.1,4521.0,40.80377648]
[1756394780800,3.2078,4522.1,4521.1,21.9191]
[1756394780997,3.2078,4522.1,4521.2,21.521]
[1756394781199,3.2078,4521.6,4521.3,0.5158]
[1756394781500,3.7542,4521.6,4521.0,40.80377648]
[1756394781701,3.2078,4521.6,4521.0,0.00377648]
[1756394782007,0.5464,4521.8,4521.0,0.00377648]
[1756394782008,3.2078,4521.1,4521.0,0.00377648]
[1756394782198,3.7542,4521.1,4521.0,19.17177648]
[1756394782794,3.2078,4521.1,4521.0,19.68757648]
[1756394782999,1.5547798,4524.0,4521.0,19.68757648]
[1756394783000,3.2078,4521.6,4521.1,0.5158]
[1756394783598,3.2078,4521.6,4521.0,19.17177648]
[1756394783599,3.2078,4521.6,4521.0,0.00377648]
[1756394783795,3.2078,4521.6,4521.2,21.507]
[1756394784004,3.2078,4521.6,4521.3,0.5158]
[1756394784202,3.2078,4521.6,4521.4,21.503]
[1756394784499,3.2078,4521.6,4521.5,0.5158]
[1756394784900,3.2078,4522.1,4521.0,0.00377648]
[1756394785098,3.7542,4522.1,4521.0,0.00377648]
[1756394785297,4.73,4523.1,4521.0,0.00377648]
[1756394785298,3.2078,4521.5,4521.0,0.00377648]
[1756394785494,0.5464,4521.4,4521.0,0.00377648]
[1756394785907,0.5464,4521.4,4521.1,0.5158]
[1756394786103,3.2078,4521.5,4521.1,0.5158]
[1756394786307,0.5464,4521.4,4521.2,21.504]
[1756394786504,3.2078,4521.5,4521.3,21.502]
[1756394786808,0.99504,4522.1,4521.4,0.5158]
[1756394787002,0.39806,4521.6,4521.1,3.2078]
[1756394787203,0.99506,4522.0,4521.3,0.5158]
[1756394787411,3.2078,4522.2,4521.3,0.5158]
[1756394787412,0.99504,4522.1,4521.3,0.5158]
[1756394787605,0.99504,4522.1,4521.5,0.5158]
[1756394787911,0.3981,4521.1,4521.0,0.51957648]
[1756394788109,0.9445,4521.1,4521.0,21.52677648]
[1756394788306,0.9445,4521.1,4521.0,0.00377648]
[1756394788505,0.39819,4520.1,4520.0,20.5158]
[1756394788707,0.94459,4520.1,4520.0,20.0]
[1756394788908,4.94459,4520.1,4520.0,20.0]
[1756394789116,4.5464,4520.1,4518.8,0.01546956]
[1756394789408,3.60609,4518.9,4518.8,9.56e-06]
[1756394789813,7.60609,4518.9,4518.8,9.56e-06]
[1756394790504,3.60609,4518.9,4518.8,9.56e-06]
[1756394791304,7.60609,4518.9,4518.8,9.56e-06]
[1756394791504,3.60609,4518.9,4518.8,9.56e-06]
[1756394792607,7.60609,4518.9,4518.8,9.56e-06]
[1756394792808,3.60609,4518.9,4518.8,9.56e-06]
[1756394793015,3.60609,4518.9,4518.8,0.51580956]
[1756394793201,3.60609,4518.9,4518.8,21.68900956]
[1756394793709,3.60609,4518.9,4518.8,22.20780956]
[1756394793710,3.2078,4518.9,4518.8,22.20780956]
[1756394793904,3.2078,4518.9,4518.8,22.20580956]
[1756394794516,3.2078,4518.9,4518.8,22.23780956]
[1756394794715,9.95453,4520.3,4518.8,22.23780956]
[1756394794716,3.2078,4519.4,4518.8,25.72200956]
[1756394794906,0.39829,4519.0,4518.9,0.5158]
[1756394795211,0.39829,4519.0,4518.9,11.528]
[1756394795513,0.39829,4519.0,4518.8,9.56e-06]
[1756394796118,0.39829,4519.0,4518.9,22.3778]
[1756394797010,0.39829,4519.0,4518.9,0.6258]
[1756394797208,0.39829,4519.0,4518.9,0.16061]
[1756394797408,0.39829,4519.0,4518.9,21.733]
[1756394798116,0.39829,4519.0,4518.8,9.56e-06]
[1756394798317,0.39829,4519.0,4518.9,21.719]
[1756394799417,0.39829,4519.0,4518.9,22.3448]
[1756394799616,0.39829,4519.0,4518.9,0.6258]
[1756394799918,0.39829,4519.0,4518.9,22.3238]
[1756394800218,0.39829,4519.0,4518.8,9.56e-06]
[1756394800614,0.39829,4519.0,4518.9,21.689]
[1756394800912,0.39829,4519.0,4518.8,9.56e-06]
[1756394801116,0.39829,4519.0,4518.9,21.682]
[1756394801308,0.39829,4519.0,4518.9,22.3078]
[1756394801514,0.39829,4519.0,4518.9,22.3088]
[1756394801916,0.39829,4519.0,4518.9,0.6258]
[1756394802116,0.39829,4519.0,4518.9,22.3038]
[1756394802318,0.39829,4519.0,4518.8,9.56e-06]
[1756394802725,0.39829,4519.0,4518.9,21.669]
[1756394803021,0.99709,4519.0,4518.9,21.669]
[1756394803226,0.39829,4519.0,4518.9,0.6258]
[1756394803422,0.39829,4519.0,4518.9,22.2908]
[1756394803927,0.39829,4519.0,4518.9,0.6258]
[1756394804117,0.39829,4519.0,4518.9,26.2878]
[1756394804318,3.2078,4519.8,4519.0,0.6258]
[1756394804514,3.2078,4519.8,4519.1,21.664]
[1756394804725,3.2078,4519.8,4519.2,0.6258]
[1756394805019,3.2078,4519.8,4519.3,21.663]
[1756394805225,3.2078,4520.4,4519.4,0.6258]
[1756394805523,3.2078,4520.4,4519.6,0.6258]
[1756394806115,3.2078,4520.4,4519.7,21.655]
[1756394806322,3.2078,4520.4,4519.8,0.6258]
[1756394806813,3.2078,4520.4,4519.0,40.8]
[1756394806814,3.8066,4520.9,4520.0,0.6258]
[1756394807123,3.2078,4520.6,4520.1,21.64]
[1756394808029,3.2078,4520.6,4520.3,0.6258]
[1756394808219,3.2078,4521.1,4520.5,0.6258]
[1756394808420,3.2078,4521.1,4520.4,21.634]
[1756394808421,3.2078,4521.1,4520.7,0.6258]
[1756394808719,3.2078,4521.6,4520.7,0.6258]
[1756394808923,0.5988,4521.0,4520.8,21.624]
[1756394809228,3.2078,4521.1,4520.9,0.6258]
[1756394809431,3.8066,4521.1,4521.0,21.618]
[1756394810321,3.8066,4521.1,4521.0,21.623]
[1756394810624,3.2078,4521.1,4520.6,31.873]
[1756394810827,3.2078,4521.1,4520.7,21.62]
[1756394811128,4.82,4521.0,4518.8,31.87100956]
[1756394811322,3.2078,4519.2,4518.9,22.2508]
[1756394811522,3.2078,4519.2,4518.9,0.6258]
[1756394811720,3.2078,4519.2,4519.0,21.631]
[1756394811920,3.8066,4519.2,4519.0,21.631]
[1756394812121,3.2078,4519.8,4519.1,0.6258]
[1756394812929,6.045,4521.8,4518.8,31.87100956]
[1756394812930,3.2078,4519.2,4518.8,31.87100956]
[1756394813127,3.8066,4519.2,4518.9,21.622]
[1756394813430,3.2078,4519.2,4519.0,0.6258]
[1756394813826,3.2078,4519.7,4519.0,0.6258]
[1756394814430,3.2078,4519.7,4519.1,21.614]
[1756394814733,3.2078,4519.7,4519.2,21.609]
[1756394814734,0.5988,4519.6,4519.2,21.609]
[1756394815034,3.2078,4519.7,4519.2,21.609]
[1756394815228,0.5988,4519.6,4518.8,31.87100956]
[1756394815534,3.2078,4519.1,4518.9,22.2268]
[1756394815734,3.2078,4519.1,4519.0,0.6258]
[1756394816328,3.2078,4519.1,4519.0,22.2228]
[1756394816826,3.2078,4519.1,4519.0,0.6258]
[1756394817023,3.2078,4519.1,4518.8,31.87100956]
[1756394817325,0.5988,4519.0,4518.9,21.575]
[1756394817525,0.5988,4518.9,4518.8,31.87100956]
[1756394817731,0.5988,4518.9,4518.8,53.44600956]
[1756394818734,3.2078,4519.1,4518.8,53.44600956]
[1756394819132,3.2078,4519.1,4518.9,0.6258]
[1756394819440,3.2078,4519.1,4519.0,22.1908]
[1756394820137,2.9679595,4519.6,4519.0,26.1908]
[1756394820330,3.2078,4520.7,4519.5,0.5339]
[1756394820528,3.2078,4520.7,4519.7,0.5339]
[1756394820730,3.2078,4520.7,4519.9,0.5339]
[1756394821331,3.2078,4521.3,4520.0,25.168]
[1756394821529,3.2078,4521.3,4520.0,24.7698]
[1756394821829,3.2078,4521.3,4520.1,0.5339]
[1756394822026,3.8066,4521.8,4520.2,22.0829]
[1756394822228,0.5988,4521.2,4520.2,0.5339]
[1756394822435,3.2078,4520.8,4520.3,21.553]
[1756394822739,0.5988,4520.7,4520.4,21.549]
[1756394822938,3.2078,4520.8,4520.5,21.554]
[1756394823134,0.5988,4520.7,4520.5,21.554]
[1756394823340,3.2078,4520.8,4520.5,21.554]
[1756394823533,3.2078,4520.8,4520.6,0.5339]
[1756394824031,3.2078,4520.8,4520.7,3.375]
[1756394824233,3.2078,4520.8,4520.7,17.005]
[1756394824730,3.2078,4520.8,4520.7,21.534]
[1756394824932,3.8066,4520.8,4520.7,21.53]
[1756394825740,3.8066,4520.8,4520.2,0.5339]
[1756394825935,3.2078,4520.8,4520.3,21.527]
[1756394826138,0.6352,4520.7,4520.3,21.527]
[1756394826339,3.2078,4520.8,4520.3,21.527]
[1756394826532,3.2078,4520.8,4520.4,0.5418]
[1756394826733,0.6352,4520.7,4519.3,1.5758256]
[1756394827038,3.843,4520.2,4519.4,21.52]
[1756394827234,3.843,4520.2,4519.4,22.0618]
[1756394827439,3.2078,4520.7,4519.7,3.2078]
[1756394827741,3.2078,4520.7,4519.8,0.5418]
[1756394828136,3.2078,4520.7,4519.9,21.514]
[1756394828337,3.2078,4520.7,4520.0,21.518]
[1756394828937,3.2078,4520.7,4519.8,0.5418]
[1756394829232,3.2078,4520.7,4519.9,21.509]
[1756394829433,0.6352,4520.6,4519.8,0.5418]
[1756394829844,0.6352,4520.6,4519.9,21.5]
[1756394830038,0.6352,4520.6,4520.0,0.5418]
[1756394830236,3.2078,4520.7,4519.9,21.5]
[1756394830436,0.6352,4520.6,4519.2,4.7836256]
[1756394830735,3.2078,4520.1,4519.3,21.51]
[1756394830937,0.6352,4520.0,4519.3,21.51]
[1756394831140,0.6352,4519.5,4518.9,0.5418]
[1756394831535,3.2078,4519.6,4519.0,21.502]
[1756394832030,3.2078,4519.6,4519.1,0.5373]